bitfinex/quotes_SOLUSD_20250908
["timestamp","ask_amount","ask_price","bid_price","bid_amount"]
[1757355072209,18.85778368,214.9,214.85,0.26]
[1757355072409,18.85778368,214.9,214.86,0.26]
[1757355072610,22.05104307,214.9,214.86,0.26]
[1757355072842,22.05104307,214.9,214.81,4.65527675]
[1757355073138,32.92058966,214.9,214.84,0.26]
[1757355073439,24.48053123,214.9,214.84,0.26]
[1757355073642,16.63388333,214.9,214.84,0.26]
[1757355074031,13.59559401,214.88,214.84,0.26]
[1757355074223,0.60880116,214.87,214.84,0.26]
[1757355075330,0.60880116,214.87,214.85,0.26]
[1757355075615,0.60880116,214.87,214.83,4.65482059]
[1757355075816,14.20439517,214.87,214.86,0.03]
[1757355076119,13.59559401,214.87,214.86,0.29]
[1757355076332,13.59559401,214.87,214.86,0.03]
[1757355076507,13.59559401,214.87,214.86,0.29]
[1757355076714,13.59559401,214.87,214.86,0.03]
[1757355078039,18.24957083,214.87,214.86,0.03]
[1757355078350,27.82535225,214.87,214.86,0.03]
[1757355078516,57.93253577,214.87,214.86,0.03]
[1757355078921,58.54133693,214.87,214.86,0.03]
[1757355079946,18.77603662,214.87,214.86,0.03]
[1757355080254,23.88137543,214.87,214.86,0.03]
[1757355081018,28.53535225,214.87,214.86,0.03]
[1757355081219,44.77603662,214.87,214.86,0.03]
[1757355082136,55.14415341,214.87,214.86,0.03]
[1757355082827,44.77603662,214.87,214.86,0.03]
[1757355083328,45.48603662,214.87,214.86,0.03]
[1757355083638,55.14415341,214.87,214.86,0.03]
[1757355085347,50.14001344,214.87,214.86,0.03]
[1757355085544,14.20439517,214.87,214.86,0.03]
[1757355085728,13.59559401,214.87,214.86,0.03]
[1757355086420,14.20439517,214.87,214.86,0.03]
[1757355087034,13.59559401,214.87,214.86,0.03]
[1757355090748,14.30559401,214.87,214.86,0.03]
[1757355090952,13.59559401,214.87,214.86,0.03]
[1757355091829,14.30559401,214.87,214.86,0.03]
[1757355092042,19.56837199,214.87,214.86,0.03]
[1757355092435,14.91439517,214.87,214.86,0.03]
[1757355093439,19.56837199,214.87,214.86,0.03]
[1757355093950,14.20439517,214.87,214.86,0.03]
[1757355094254,14.91439517,214.87,214.86,0.03]
[1757355095650,14.20439517,214.87,214.86,0.03]
[1757355097053,14.91439517,214.87,214.86,0.03]
[1757355097660,18.31542387,214.87,214.86,0.03]
[1757355098658,14.91439517,214.87,214.86,0.03]
[1757355099061,18.31562695,214.87,214.86,0.03]
[1757355099254,14.91439517,214.87,214.86,0.03]
[1757355099758,18.31757907,214.87,214.86,0.03]
[1757355102344,16.99877791,214.87,214.86,0.03]
[1757355102566,13.59559401,214.87,214.86,0.03]
[1757355102853,14.26559401,214.87,214.86,0.03]
[1757355103050,18.28071686,214.87,214.86,0.03]
[1757355104448,17.61071686,214.87,214.86,0.03]
[1757355104659,13.59559401,214.87,214.86,0.03]
[1757355104873,17.67637572,214.87,214.86,0.03]
[1757355105480,17.00637572,214.87,214.86,0.03]
[1757355105775,17.67637572,214.87,214.86,0.03]
[1757355106453,17.00637572,214.87,214.86,0.03]
[1757355106659,17.67637572,214.87,214.86,0.03]
[1757355108670,2.16982581,214.88,214.86,0.29]
[1757355108854,0.06,214.99,214.91,26.0]
[1757355109055,3.09780696,215.08,214.95,26.0]
[1757355109255,0.60880116,215.07,214.96,36.76]
[1757355110167,0.60880116,215.07,214.97,16.28134158]
[1757355110368,13.59559401,215.06,214.97,16.28134158]
[1757355110971,13.59559401,215.07,214.97,16.28134158]
[1757355111357,0.60880116,215.06,214.97,16.28134158]
[1757355111552,14.87439517,215.07,214.97,16.28134158]
[1757355111764,14.20439517,215.07,214.97,16.28134158]
[1757355111948,14.20439517,215.07,214.98,36.74]
[1757355112476,14.20439517,215.07,214.99,16.27982696]
[1757355113455,0.06,215.09,215.02,26.0]
[1757355114477,0.06,215.09,215.03,16.27679858]
[1757355114777,13.65559401,215.09,215.04,36.72]
[1757355114959,0.60880116,215.08,215.04,36.72]
[1757355115163,0.06,215.07,215.04,36.72]
[1757355115360,0.06,215.07,215.03,16.27679858]
[1757355115569,0.06,215.07,215.04,36.72]
[1757355116774,0.06,215.07,215.05,4.65008137]
[1757355116981,0.06,215.07,215.06,36.72]
[1757355118064,0.06,215.07,215.06,41.36986515]
[1757355121190,13.59559401,215.06,215.04,4.65008954]
[1757355121357,13.59559401,215.06,215.05,36.66]
[1757355121674,0.06,215.07,215.05,36.66]
[1757355121878,0.73,215.07,215.05,36.66]
[1757355122588,0.67,215.06,215.05,36.66]
[1757355123087,0.06,215.07,215.05,36.66]
[1757355123088,0.06,215.07,215.05,41.31002353]
[1757355123264,0.06,215.07,215.06,36.66]
[1757355124183,0.06,215.07,215.06,41.30986515]
[1757355126872,13.59559401,215.06,215.01,11.62694762]
[1757355127078,13.59559401,215.06,215.02,41.27073016]
[1757355127972,13.59559401,215.06,215.02,52.89755557]
[1757355128175,18.59973398,215.04,214.89,23.2672986]
[1757355128378,13.59559401,215.02,214.9,36.64]
[1757355128700,13.59559401,215.0,214.94,16.28361402]
[1757355128988,13.59559401,215.0,214.95,36.64]
[1757355129172,14.26559401,215.0,214.95,36.64]
[1757355129788,13.59559401,215.02,214.95,36.64]
[1757355130298,13.59559401,215.02,214.95,40.34948668]
[1757355130476,18.59973398,214.96,214.86,0.03]
[1757355130677,9.65794267,214.88,214.86,0.03]
[1757355130890,14.88439517,214.87,214.86,0.03]
[1757355131084,13.59559401,214.87,214.86,0.03]
[1757355131481,14.27559401,214.87,214.86,0.03]
[1757355131969,14.88439517,214.87,214.86,0.03]
[1757355132578,19.88853514,214.87,214.86,0.03]
[1757355133476,19.27973398,214.87,214.86,0.03]
[1757355134088,26.36355439,214.87,214.86,0.03]
[1757355134793,16.7054376,214.87,214.86,0.03]
[1757355135174,0.60880116,215.0,214.86,26.03]
[1757355135375,3.10848625,215.01,214.89,26.0]
[1757355135573,3.10848625,215.01,214.9,37.02]
[1757355135574,0.60880116,215.0,214.9,37.02]
[1757355135773,0.60880116,215.03,214.93,26.0]
[1757355135980,1.28880116,215.06,214.93,26.0]
[1757355136278,13.59559401,215.04,214.92,26.0]
[1757355136478,13.59559401,215.02,214.93,37.04]
[1757355136697,13.59559401,215.02,214.94,37.06]
[1757355136879,13.59559401,215.02,214.95,4.6522447]
[1757355137081,13.59559401,215.02,214.95,16.28285647]
[1757355137296,13.59559401,215.02,214.89,20.0]
[1757355137297,13.59559401,215.0,214.89,4.65350292]
[1757355137479,13.59559401,214.98,214.89,4.65350292]
[1757355137686,13.59559401,214.96,214.89,4.65350292]
[1757355137884,13.59559401,214.94,214.87,4.65384476]
[1757355138084,13.59559401,214.94,214.9,36.0]
[1757355138291,13.59559401,214.92,214.86,0.03]
[1757355138598,13.59559401,214.92,214.87,37.1]
[1757355138798,0.68,214.91,214.87,41.75394398]
[1757355139302,13.59559401,214.89,214.86,0.03]
[1757355139602,13.59559401,214.89,214.88,37.08]
[1757355139901,13.59559401,214.91,214.88,37.08]
[1757355140104,13.59559401,214.89,214.86,0.03]
[1757355140296,14.20439517,214.89,214.86,0.03]
[1757355140704,13.59559401,214.91,214.86,4.68410909]
[1757355140893,13.59559401,214.91,214.86,0.03]
[1757355141206,0.60880116,215.0,214.9,26.0]
[1757355141390,0.68,215.02,214.9,26.0]
[1757355141584,0.60880116,215.01,214.9,26.0]
[1757355141787,13.59559401,215.0,214.9,26.0]
[1757355142001,0.68,215.02,214.88,26.0]
[1757355142205,13.59559401,215.0,214.91,37.22]
[1757355142403,13.59559401,214.98,214.91,37.22]
[1757355143093,0.68,215.0,214.92,16.28512935]
[1757355143299,13.59559401,214.99,214.87,4.65396069]
[1757355143601,8.56249489,214.98,214.88,34.58]
[1757355143801,13.59559401,214.96,214.88,34.58]
[1757355143991,13.59559401,214.94,214.88,34.58]
[1757355144191,13.59559401,214.94,214.86,0.03]
[1757355144192,13.59559401,214.92,214.86,0.03]
[1757355144399,13.59559401,214.9,214.86,4.68418381]
[1757355144594,14.27559401,214.9,214.87,32.62]
[1757355144903,13.59559401,214.88,214.87,32.62]
[1757355145094,14.27559401,214.88,214.86,0.03]
[1757355145289,13.59559401,214.9,214.86,4.68418658]
[1757355145609,14.27559401,214.9,214.86,4.68418658]
[1757355146204,13.59559401,214.88,214.86,0.03]
[1757355146377,13.59559401,214.88,214.86,37.43]
[1757355146706,0.68,214.88,214.86,37.43]
[1757355147084,13.59559401,214.9,214.86,37.43]
[1757355147386,13.59559401,214.88,214.86,37.43]
[1757355148586,0.68,214.88,214.86,37.43]
[1757355151200,13.59559401,214.9,214.86,37.43]
[1757355151398,13.59559401,214.88,214.86,37.43]
[1757355152392,13.65559401,214.88,214.86,37.43]
[1757355153806,0.74,214.88,214.86,37.43]
[1757355154888,0.06,214.88,214.86,0.03]
[1757355155088,14.27559401,214.87,214.86,0.03]
[1757355155293,14.88439517,214.87,214.86,0.03]
[1757355156209,22.76689006,214.87,214.86,0.03]
[1757355157087,27.42086688,214.87,214.86,0.03]
[1757355157387,30.81074421,214.87,214.86,0.03]
[1757355158493,22.92824932,214.87,214.86,0.03]
[1757355158694,30.81074421,214.87,214.86,0.03]
[1757355159112,22.92824932,214.87,214.86,0.03]
[1757355159313,30.81074421,214.87,214.86,0.03]
[1757355159610,30.80896789,214.87,214.86,0.03]
[1757355159805,27.42086688,214.87,214.86,0.03]
[1757355162812,19.53837199,214.87,214.86,0.03]
[1757355162991,27.42086688,214.87,214.86,0.03]
[1757355163196,30.80975556,214.87,214.86,0.03]
[1757355165220,22.92726067,214.87,214.86,0.03]
[1757355165403,22.92751525,214.87,214.86,0.03]
[1757355165604,30.81001014,214.87,214.86,0.03]
[1757355166212,22.92751525,214.87,214.86,0.03]
[1757355166704,13.59559401,214.87,214.86,0.03]
[1757355167320,18.95957083,214.87,214.86,0.03]
[1757355168615,22.35344064,214.87,214.86,0.03]
[1757355168812,18.95957083,214.87,214.86,0.03]
[1757355169010,22.35349577,214.87,214.86,0.03]
[1757355169611,16.98951895,214.87,214.86,0.03]
[1757355169812,13.59559401,214.87,214.86,0.03]
[1757355170627,18.24957083,214.87,214.86,0.03]
[1757355171329,21.64968577,214.87,214.86,0.03]
[1757355171824,22.35968577,214.87,214.86,0.03]
[1757355174414,151.49570895,214.87,214.86,0.03]
[1757355175024,156.85968577,214.87,214.86,0.03]
[1757355176209,152.20570895,214.87,214.86,0.03]
[1757355176423,156.85968577,214.87,214.86,0.03]
[1757355176630,152.20570895,214.87,214.86,0.03]
[1757355177024,156.85968577,214.87,214.86,0.03]
[1757355178734,151.49570895,214.87,214.86,0.03]
[1757355178933,156.14968577,214.87,214.86,0.03]
[1757355179121,148.80559401,214.87,214.86,0.03]
[1757355179428,152.21406987,214.87,214.86,0.03]
[1757355179828,156.86804669,214.87,214.86,0.03]
[1757355180146,151.50406987,214.87,214.86,0.03]
[1757355180317,13.59559401,214.87,214.86,0.03]
[1757355181221,17.00627393,214.87,214.86,0.03]
[1757355181429,22.97905191,214.87,214.86,0.03]
[1757355181815,17.61507509,214.87,214.86,0.03]
[1757355182012,22.26905191,214.87,214.86,0.03]
[1757355182410,22.97905191,214.87,214.86,0.03]
[1757355182824,18.32507509,214.87,214.86,0.03]
[1757355183036,22.26905191,214.87,214.86,0.03]
[1757355183409,39.59559401,214.84,214.83,0.03]
[1757355183636,43.61507509,214.84,214.83,0.03]
[1757355184715,17.61507509,214.84,214.83,0.03]
[1757355184928,43.61507509,214.84,214.83,0.03]
[1757355185436,17.61507509,214.84,214.83,0.03]
[1757355185644,17.00627393,214.84,214.83,0.03]
[1757355186516,17.00627393,214.84,214.83,0.06]
[1757355187528,0.06,214.88,214.83,0.06]
[1757355187724,13.59559401,214.86,214.84,0.03]
[1757355187926,0.06,214.88,214.83,0.03]
[1757355188128,13.59559401,214.86,214.83,0.03]
[1757355188425,17.02000378,214.85,214.84,0.03]
[1757355188619,13.59559401,214.85,214.83,0.03]
[1757355188834,13.59559401,214.85,214.84,0.03]
[1757355189238,0.06,214.87,214.86,26.0]
[1757355189546,0.06,214.87,214.86,26.03]
[1757355190964,0.06,214.88,214.87,26.0]
[1757355191119,1e-08,214.91,214.89,26.0]
[1757355191452,0.06,214.93,214.9,37.24]
[1757355191649,0.06,214.93,214.89,26.0]
[1757355191864,3.42228693,214.92,214.9,37.28]
[1757355192038,0.06,214.93,214.9,37.28]
[1757355192222,0.06,214.93,214.88,0.03]
[1757355192426,0.06,214.93,214.89,37.31]
[1757355192625,0.06,214.93,214.89,0.03]
[1757355192927,0.06,214.93,214.91,4.6531106]
[1757355193127,0.06,214.93,214.91,4.6831106]
[1757355193631,0.06,214.93,214.89,4.68334799]
[1757355193830,0.06,214.93,214.9,37.28]
[1757355194030,0.06,214.93,214.9,37.31]
[1757355194227,0.06,214.93,214.9,37.28]
[1757355194428,0.06,214.93,214.91,0.03]
[1757355194629,0.06,214.93,214.92,0.03]
[1757355195054,0.06,214.93,214.91,4.6531106]
[1757355195232,0.06,214.93,214.91,4.6831106]
[1757355196753,0.06,214.93,214.92,0.03]
[1757355197148,0.06,214.93,214.91,4.6531106]
[1757355197454,0.06,214.93,214.91,4.6831106]
[1757355197831,0.06,214.93,214.92,0.03]
[1757355200353,0.71,215.02,214.94,26.0]
[1757355200659,13.59559401,215.04,214.95,37.19]
[1757355200861,13.59559401,215.04,214.96,0.03]
[1757355201441,13.59559401,215.04,214.96,3.74494009]
[1757355201648,13.59559401,215.02,214.97,37.16]
[1757355201846,0.71,215.01,214.98,37.16]
[1757355202269,14.30559401,215.0,214.98,37.16]
[1757355202454,14.30559401,214.99,214.98,37.16]
[1757355202685,13.59559401,215.01,214.98,41.81159549]
[1757355202852,14.30559401,215.01,214.98,41.81159549]
[1757355203358,0.71,215.0,214.98,41.81159549]
[1757355203960,13.59559401,215.01,214.98,41.81159549]
[1757355205241,0.71,215.01,214.98,37.16]
[1757355205476,0.71,215.0,214.98,37.16]
[1757355205664,0.71,215.0,214.98,41.81151018]
[1757355205971,13.59559401,215.01,214.98,41.81151018]
[1757355206155,14.30559401,215.01,214.98,41.81151018]
[1757355206357,18.95594165,215.04,214.98,41.81151018]
[1757355206585,18.24594165,215.04,214.98,41.81151018]
[1757355206745,0.71,215.03,214.98,41.81151018]
[1757355207074,13.59559401,215.01,214.98,41.81151018]
[1757355207371,13.59559401,215.04,214.98,41.81151018]
[1757355207738,13.59559401,215.04,214.98,53.44049892]
[1757355207941,0.06,215.04,214.99,0.03]
[1757355208358,0.06,215.04,215.0,0.03]
[1757355208556,0.06,215.04,214.98,16.28049892]
[1757355208844,0.06,215.04,214.99,37.12]
[1757355209459,0.06,215.04,215.0,4.65116279]
[1757355210553,0.06,215.04,215.0,16.30906976]
[1757355210868,0.06,215.04,215.0,16.27906976]
[1757355212664,0.06,215.04,215.0,16.30906976]
[1757355212865,0.06,215.04,215.01,37.06]
[1757355215770,0.06,215.04,215.02,4.65073016]
[1757355217560,13.59559401,215.02,214.92,3.75351876]
[1757355217757,0.71,215.01,214.96,26.0]
[1757355218090,0.06,215.04,214.97,37.02]
[1757355218295,0.71,215.01,214.97,37.02]
[1757355218453,0.77,215.04,214.97,37.02]
[1757355218660,13.59559401,215.03,214.97,37.02]
[1757355219487,0.06,215.04,214.98,16.31058423]
[1757355219958,0.06,215.04,214.99,0.03]
[1757355220163,0.06,215.04,215.0,37.03]
[1757355220557,0.06,215.04,215.0,37.0]
[1757355220785,0.06,215.04,215.0,37.03]
[1757355221356,0.06,215.04,215.01,0.03]
[1757355221570,0.06,215.04,215.03,30.65051388]
[1757355221769,0.06,215.04,215.03,67.68051388]
[1757355222665,0.06,215.04,215.03,67.66051388]
[1757355223363,0.06,215.06,215.03,79.28679858]
[1757355223565,0.06,215.06,215.05,30.65008137]
[1757355223997,0.06,215.06,215.05,30.68008137]
[1757355224368,1e-08,215.06,215.05,30.68008137]
[1757355224672,0.06,215.07,215.05,67.64008137]
[1757355224868,0.06,215.07,215.06,0.58798381]
[1757355225276,0.06,215.09,215.08,26.0]
[1757355225475,0.74,215.09,215.08,41.60943276]
[1757355225671,0.74,215.09,215.06,4.64975936]
[1757355225876,0.68,215.08,215.07,37.02]
[1757355226489,0.06,215.07,215.05,30.65007474]
[1757355226693,0.74,215.07,215.06,37.02]
[1757355227778,0.06,215.07,215.06,41.66986515]
[1757355231306,0.06,215.07,215.06,41.69986515]
[1757355231598,0.06,215.07,215.06,41.66986515]
[1757355232394,0.06,215.07,215.06,41.69986515]
[1757355232894,1e-08,215.07,215.06,41.69986515]
[1757355233470,0.06,215.09,215.08,26.0]
[1757355233798,1e-08,215.09,215.08,63.49793193]
[1757355233996,1e-08,215.09,215.08,63.52793193]
[1757355234794,1e-08,215.09,215.08,68.17736469]
[1757355235383,1e-08,215.09,215.08,31.23736469]
[1757355235588,1e-08,215.09,215.08,30.64943276]
[1757355235788,1e-08,215.09,215.08,67.54943276]
[1757355238790,1e-08,215.09,215.08,30.64943276]
[1757355238990,1e-08,215.09,215.08,67.52943276]
[1757355240288,0.68000001,215.09,215.08,67.50943276]
[1757355243105,1e-08,215.09,215.08,67.50943276]
[1757355243602,0.68000001,215.09,215.08,67.50943276]
[1757355244678,0.68000001,215.09,215.08,67.46943276]
[1757355245309,0.68000001,215.09,215.08,67.44943276]
[1757355245607,0.68000001,215.09,215.08,30.64943276]
[1757355245899,0.68000001,215.09,215.08,67.44943276]
[1757355250612,1e-08,215.09,215.08,67.44943276]
[1757355253108,1e-08,215.09,215.08,68.03736469]
[1757355253495,1e-08,215.1,215.08,68.03736469]
[1757355254503,1e-08,215.1,215.08,68.00736469]
[1757355254702,1e-08,215.1,215.09,0.03]
[1757355254896,0.13,215.16,215.09,0.03]
[1757355255104,0.13,215.16,215.1,37.31788005]
[1757355255497,0.13,215.16,215.11,16.27074519]
[1757355255695,0.13,215.16,215.12,36.74]
[1757355255909,0.83,215.16,215.12,36.74]
[1757355256398,0.13,215.16,215.12,36.74]
[1757355256714,0.7,215.15,215.12,36.74]
[1757355257110,0.7,215.15,215.13,36.74]
[1757355257310,0.7,215.15,215.11,39.5146669]
[1757355257516,0.7,215.15,215.13,4.64835215]
[1757355257718,0.7,215.15,215.14,36.74]
[1757355259832,0.13,215.16,215.15,4.64792005]
[1757355260396,0.83,215.16,215.15,4.64792005]
[1757355260615,0.13,215.16,215.15,4.64792005]
[1757355260814,0.13,215.16,215.15,30.64792005]
[1757355261020,0.13,215.16,215.15,67.41792005]
[1757355261021,1e-08,215.16,215.15,67.41792005]
[1757355261200,1e-08,215.16,215.15,67.97567045]
[1757355261406,1e-08,215.16,215.15,67.94567045]
[1757355262322,0.06,215.19,215.15,79.59547058]
[1757355262524,0.06,215.19,215.16,0.03]
[1757355262819,0.06,215.19,215.17,37.32769856]
[1757355263203,0.06,215.22,215.2,26.0]
[1757355263396,0.06,215.22,215.21,36.74]
[1757355264808,0.06,215.22,215.21,41.38662422]
[1757355265703,0.06,215.22,215.21,4.64662422]
[1757355266020,0.06,215.22,215.21,41.38662422]
[1757355267805,0.06,215.24,215.23,26.0]
[1757355268028,0.06,215.24,215.23,62.74]
[1757355268619,0.06,215.27,215.23,63.29754309]
[1757355268819,0.2,215.29,215.24,0.03]
[1757355269028,0.2,215.29,215.25,36.74]
[1757355269508,0.2,215.29,215.25,37.32749128]
[1757355269709,0.9,215.31,215.25,37.32749128]
[1757355269710,0.2,215.31,215.28,4.64511334]
[1757355270326,0.2,215.31,215.3,26.0]
[1757355270728,0.7,215.36,215.31,26.0]
[1757355270931,0.7,215.35,215.32,36.72]
[1757355271237,0.7,215.38,215.31,0.55733593]
[1757355271428,0.7,215.38,215.31,26.0]
[1757355271605,0.1,215.41,215.28,29.8534907]
[1757355271606,0.7,215.37,215.35,26.0]
[1757355271814,0.1,215.41,215.37,4.64317221]
[1757355272010,0.1,215.41,215.38,36.72]
[1757355272429,0.7,215.4,215.36,4.64336023]
[1757355272626,0.7,215.39,215.37,36.72]
[1757355272820,0.7,215.38,215.37,36.72]
[1757355273422,0.7,215.38,215.34,30.64361155]
[1757355273621,0.7,215.37,215.35,36.72]
[1757355273823,0.7,215.36,215.35,41.36360343]
[1757355274524,0.7,215.36,215.35,4.64360343]
[1757355274724,0.7,215.36,215.35,41.36360343]
[1757355276228,0.7,215.36,215.35,4.64360343]
[1757355276437,0.7,215.36,215.35,36.72]
[1757355276825,14.29559401,215.36,215.28,16.2576276]
[1757355277014,0.7,215.35,215.28,16.2576276]
[1757355277214,0.7,215.34,215.31,26.0]
[1757355277436,0.7,215.33,215.31,26.0]
[1757355277636,0.7,215.32,215.31,26.0]
[1757355278020,0.7,215.32,215.31,62.7]
[1757355278216,0.7,215.32,215.28,4.64511334]
[1757355278418,0.7,215.31,215.29,36.7]
[1757355278623,0.7,215.33,215.29,36.7]
[1757355278827,0.7,215.33,215.26,42.25940722]
[1757355279029,0.7,215.33,215.27,36.7]
[1757355280019,0.7,215.33,215.28,16.25789669]
[1757355280933,0.66,215.33,215.28,16.25789669]
[1757355281232,0.66,215.33,215.28,11.61278335]
[1757355281431,0.66,215.33,215.3,0.03]
[1757355281822,0.06,215.32,215.3,0.03]
[1757355282232,0.06,215.32,215.3,4.67468183]
[1757355284443,0.06,215.32,215.31,30.64446611]
[1757355286235,0.06,215.32,215.31,67.34446611]
[1757355288130,0.19,215.35,215.31,78.9856314]
[1757355289449,0.19,215.35,215.31,78.9556314]
[1757355290751,0.19,215.35,215.31,78.9856314]
[1757355292351,0.19,215.35,215.32,0.03]
[1757355292544,0.19,215.35,215.33,36.7]
[1757355294243,0.19,215.35,215.34,4.64381907]
[1757355297365,0.85,215.35,215.34,36.68]
[1757355297553,0.85,215.35,215.32,4.64425041]
[1757355297763,0.66,215.34,215.33,36.68]
[1757355298764,0.19,215.35,215.33,36.68]
[1757355299141,0.66,215.34,215.33,36.68]
[1757355299340,0.66,215.34,215.33,41.32403473]
[1757355301651,0.19,215.35,215.33,36.68]
[1757355302435,0.19,215.35,215.32,37.61062604]
[1757355302640,0.19,215.35,215.34,26.0]
[1757355302948,0.19,215.35,215.34,62.68]
[1757355303548,0.06,215.37,215.34,78.93336676]
[1757355304443,1e-08,215.37,215.35,0.03]
[1757355304642,0.1,215.41,215.39,26.0]
[1757355304840,0.1,215.41,215.4,36.68]
[1757355306458,0.1,215.41,215.39,4.64274107]
[1757355306665,0.1,215.41,215.4,36.68]
[1757355307455,0.1,215.41,215.39,4.64274107]
[1757355307638,0.1,215.41,215.4,41.32252553]
[1757355309063,0.1,215.41,215.4,4.64252553]
[1757355309364,0.1,215.41,215.4,41.30252553]
[1757355310064,0.1,215.44,215.43,26.0]
[1757355310238,0.82,215.44,215.43,62.66]
[1757355310643,0.82,215.44,215.43,67.30187903]
[1757355311553,1e-08,215.44,215.43,67.30187903]
[1757355312173,0.72,215.49,215.43,67.30187903]
[1757355312174,0.72,215.49,215.43,65.45597177]
[1757355312354,0.72,215.49,215.47,26.0]
[1757355312552,0.72,215.49,215.48,36.66]
[1757355312780,13.65559401,215.57,215.48,41.30080193]
[1757355313068,13.59559401,215.55,215.49,36.66]
[1757355313240,0.72,215.54,215.49,36.66]
[1757355313562,0.72,215.53,215.49,36.66]
[1757355313761,0.72,215.52,215.49,36.66]
[1757355314060,0.72,215.51,215.49,36.66]
[1757355314244,0.72,215.53,215.52,26.0]
[1757355314444,0.72,215.53,215.52,62.66]
[1757355314661,0.72,215.54,215.52,62.66]
[1757355314857,0.06,215.57,215.53,4.63972532]
[1757355315058,0.06,215.57,215.54,36.66]
[1757355315355,0.72,215.56,215.53,4.63972532]
[1757355315558,0.72,215.55,215.48,26.0]
[1757355315765,0.72,215.54,215.48,26.0]
[1757355315959,0.72,215.53,215.43,1.85619156]
[1757355316266,0.72,215.52,215.44,26.0]
[1757355316654,0.06,215.47,215.45,4.64144813]
[1757355316861,0.72,215.46,215.45,4.64144813]
[1757355317056,0.72,215.46,215.45,41.28144813]
[1757355317947,0.72,215.46,215.45,4.64144813]
[1757355318142,0.72,215.46,215.45,41.28144813]
[1757355318547,0.72,215.46,215.45,4.64144813]
[1757355318757,0.72,215.46,215.45,41.28144813]
[1757355318965,0.72,215.46,215.45,4.64144813]
[1757355319165,0.72,215.46,215.42,4.64209451]
[1757355319367,0.72,215.45,215.36,4.64338781]
[1757355319556,0.72,215.44,215.37,36.64]
[1757355319765,0.72,215.44,215.38,26.0]
[1757355319963,0.72,215.44,215.39,16.24959375]
[1757355320174,0.72,215.43,215.39,16.24959375]
[1757355320477,0.72,215.42,215.41,26.0]
[1757355321162,0.72,215.42,215.41,62.64]
[1757355322172,0.72,215.42,215.41,67.28231001]
[1757355323282,0.72,215.42,215.41,30.64231001]
[1757355323586,0.72,215.42,215.41,67.28231001]
[1757355327767,0.72,215.42,215.41,30.64231001]
[1757355327947,0.72,215.42,215.41,67.28231001]
[1757355329169,0.72,215.42,215.41,30.64231001]
[1757355329371,14.31559401,215.42,215.36,11.60814575]
[1757355329559,14.31559401,215.41,215.37,36.64]
[1757355329765,0.72,215.4,215.37,36.64]
[1757355329966,0.72,215.4,215.36,42.25153356]
[1757355330272,0.72,215.39,215.38,26.0]
[1757355330467,0.72,215.39,215.38,62.64]
[1757355330867,0.72,215.39,215.38,67.28295663]
[1757355333780,0.72,215.39,215.38,41.28295663]
[1757355333969,0.72,215.39,215.38,4.64295663]
[1757355333970,14.31559401,215.39,215.38,4.64295663]
[1757355334174,14.31559401,215.39,215.38,41.28295663]
[1757355334479,14.31559401,215.39,215.38,4.64295663]
[1757355334675,14.31559401,215.39,215.38,4.67295663]
[1757355334978,14.31559401,215.39,215.38,41.31295663]